Cogmind - Beta 14 @@@ ROGUE MODE // 2024.12.01 @ 20:39:39 Player: Shimmyarah Result: Destroyed by as-06250 with Assembled Rifle Performance ------------- Evolutions (0) 0 Regions Visited (2) 400 Robots Destroyed (9) 45 Value Destroyed (77) 77 Prototype IDs (0) 0 Alien Tech Used (0) 0 Bonus (85) 85 TOTAL SCORE: 607 Bonus ------- Follower Combat Kills 85 Cogmind --------- Core Integrity 0/250 Matter 267/300 Energy 80/100 System Corruption 0% Temperature Cool (20) Movement Flying (37) Location -10/Mines Parts ------- > --- POWER (1) -------- (None) > --- PROPULSION (2) --- Flight Unit Flight Unit > --- UTILITY (2) ------ (None) > --- WEAPON (2) ------- (None) > --- INVENTORY (5) ---- Improved Terrain Scanner Medium Laser Mining Laser Peak State ------------ > --- POWER ------------ Ion Engine > --- PROPULSION ------- Aluminum Leg Aluminum Leg > --- UTILITY ---------- Small Storage Unit Seismic Detector > --- WEAPON ----------- Small Laser Light Assault Rifle > --- INVENTORY -------- Ion Engine Light Treads Light Treads Compact Wheel Compact Wheel Improved Terrain Scanner Medium Laser Mining Laser [Rating: 8] Favorites ----------- Power Ion Engine Engine Ion Engine Propulsion Aluminum Leg Leg Aluminum Leg Flight Unit Flight Unit Utility Medium Storage Unit Device Seismic Detector Storage Medium Storage Unit Weapon Light Assault Rifle Energy Gun Medium Laser Ballistic Gun Light Assault Rifle Build | -11 -10 -10 ------- Run | Yrd Mat Min Slots Evolved . | . . . Power . | . . . Propulsion . | . . . Utility . | . . . Weapon . | . . . Parts Attached 11 | 1 4 6 Power . | . . . Engine . | . . . Core . | . . . Reactor . | . . . Propulsion 3 | . . 3 Treads . | . . . Leg . | . . . Wheel . | . . . Hover . | . . . Flight 3 | . . 3 Utility 6 | 1 2 3 Device 5 | 1 1 3 Storage 1 | . 1 . Processor . | . . . Hackware . | . . . Protection . | . . . Artifact . | . . . Weapon 2 | . 2 . Energy Gun 2 | . 2 . Energy Cannon . | . . . Ballistic Gun . | . . . Ballistic Cannon . | . . . Launcher . | . . . Special Weapon . | . . . Impact Weapon . | . . . Slashing Weapon . | . . . Piercing Weapon . | . . . Special Melee Weapon . | . . . Unidentified Prototypes . | . . . Parts Lost 2 | . . 2 Power 1 | . . 1 Propulsion 1 | . . 1 Utility . | . . . Weapon . | . . . Highest Loss Streak 1 | . . 1 To Critical Strikes . | . . . Average Slot Usage (%) 94 | . 95 91 Engine 12 | . 14 9 Leg 27 | . 28 26 Device 11 | . 10 13 Storage 13 | . 14 13 Energy Gun 13 | . 14 13 Ballistic Gun 13 | . 14 13 Peak Build Rating 8 | 8 8 8 Average Rating 7 | 6 7 7 On Entrance 7 | 6 8 8 Naked Turns . | . . . Heaviest Build 19 | 13 19 19 Greatest Support 20 | 20 20 20 Greatest Overweight (x) . | . . . Average Overweight (x) . | . . . Largest Inventory Capacity 10 | 8 10 10 Average Capacity 9 | 8 9 9 Most Carried 10 | 8 10 10 Average Carried 9 | 6 9 9 Final Capacity 10 | 8 10 5 Final Carried 10 | 8 10 3 Class Distribution -------------------- 100% | Mutant Dominant Class ---------------- Mutant | -10/Materials Mutant | -10/Mines Resources | -11 -10 -10 ----------- Run | Yrd Mat Min Matter Collected 226 | 216 10 . Remotely . | . . . Salvage Created 198 | 124 40 34 Parts 21 | 11 8 2 Haulers Intercepted . | . . . Recyclers Shooed . | . . . Parts Field Recycled . | . . . Retrieved Matter . | . . . Parts Self-Destructed . | . . . Prevented . | . . . Kills | -11 -10 -10 ------- Run | Yrd Mat Min Combat Hostiles Destroyed 5 | . 3 2 Guns 5 | . 3 2 Classes Destroyed 3 | 2 1 . Tunneler 3 | 3 . . Recycler 1 | 1 . . Swarmer 5 | . 3 2 Best Kill Streak 2 | 2 2 2 Combat Bots Only 2 | . 2 2 Max Kills in Single Turn 1 | 1 1 1 Gunslinging . | . . . Exploded . | . . . Melee . | . . . Uniques/NPCs Destroyed . | . . . Combat | -11 -10 -10 -------- Run | Yrd Mat Min Hostile Shots Fired 69 | . 8 61 Missed 26 | . 2 24 Damage Taken 601 | . 121 480 Core 253 | . 25 228 Absorbed by Shields . | . . . Core Remaining (%) 100 | 100 . . Volleys Fired 21 | 11 5 5 Largest 2 | 2 2 2 Hottest 70 | 60 70 70 Shots Fired 42 | 22 10 10 Gun 42 | 22 10 10 Cannon . | . . . Launcher . | . . . Special . | . . . Kinetic 21 | 11 5 5 Thermal 21 | 11 5 5 Explosive . | . . . Electromagnetic . | . . . Robot Hit Streak 6 | 4 2 6 Robot Miss Streak 4 | 3 1 4 Penetration Max . | . . . Secondary Targets 1 | . . 1 Max Gunslinging Chain 1 | . . 1 Shots Hit Robots 21 | 10 5 6 Core Hits 17 | 6 3 8 Critical Kills . | . . . Critical Parts Destroyed . | . . . Critical Strikes . | . . . Melee Attacks . | . . . Impact . | . . . Slashing . | . . . Piercing . | . . . Sneak Attacks . | . . . Combat Hostiles . | . . . Follow-up Attacks . | . . . Damage Inflicted 238 | 95 52 91 Guns 207 | 95 52 60 Cannons . | . . . Explosions . | . . . Melee . | . . . Ramming 31 | . . 31 Kinetic 88 | 39 26 23 Thermal 119 | 56 26 37 Explosive . | . . . Electromagnetic . | . . . Impact . | . . . Slashing . | . . . Piercing . | . . . Highest Corruption . | . . . Average Corruption . | . . . Corruption Purged . | . . . Corruption Blocked . | . . . Overload Shots . | . . . Overflow Damage . | . . . Projectiles . | . . . Explosions . | . . . Melee . | . . . Knockbacks . | . . . Impact . | . . . Kinetic . | . . . Secondary . | . . . Self-Inflicted Damage . | . . . Shots . | . . . Rammed . | . . . Targets Rammed 17 | . . 17 Kicked 17 | . . 17 Crushed . | . . . Highest Temperature 60 | 40 60 20 Average Temperature 18 | 19 24 9 Received Heat Transfer 219 | . . 219 Siege Activations . | . . . Robots Corrupted . | . . . Combat Hostiles . | . . . Parts Fried . | . . . Impact Corruptions . | . . . Robots Melted . | . . . Combat Hostiles . | . . . Parts Melted 1 | . 1 . Heat Transferred 310 | 125 74 111 Parts Sabotaged . | . . . Parts Stolen . | . . . Parts Stripped . | . . . Power Chain Reactions . | . . . Alert | -11 -10 -10 ------- Run | Yrd Mat Min Peak Influence 159 | 20 118 159 Initial 45 | . 13 45 Average 77 | 11 78 108 Maximum Alert Level . | . . . Low Security (%) 100 | 100 100 100 Level 1 . | . . . Level 2 . | . . . Level 3 . | . . . Level 4 . | . . . Level 5 . | . . . High Security . | . . . Max Security . | . . . Squads Dispatched 2 | . 1 1 Investigation . | . . . Extermination . | . . . Reinforcement 1 | . 1 . Assault 1 | . . 1 Garrison . | . . . Intercept . | . . . Searches Triggered . | . . . Construction Impeded . | . . . Haulers Reinforced . | . . . Active Scanning Responses . | . . . Cargo Convoy Interrupts . | . . . Stealth | -11 -10 -10 --------- Run | Yrd Mat Min Distress Signals 1 | . . 1 Communications Jammed . | . . . Distress Signals . | . . . Times Spotted 33 | . 5 28 Peak Tracking Total 15 | . 3 15 Tactical Retreats 1 | . 1 . Traps | -11 -10 -10 ------- Run | Yrd Mat Min Traps Triggered 2 | . 2 . Indirectly . | . . . Trap Hack Attempts . | . . . Triggered . | . . . Disarmed . | . . . Reprogrammed . | . . . Reused . | . . . Traps Extracted . | . . . Installed . | . . . Triggered . | . . . Machines | -11 -10 -10 ---------- Run | Yrd Mat Min Machines Disabled . | . . . Max in Single Turn . | . . . Machines Repaired . | . . . Machines Dismantled . | . . . Machines Sabotaged . | . . . Overloaded Fab Kills . | . . . Hacking | -11 -10 -10 --------- Run | Yrd Mat Min Machines Accessed 1 | . 1 . Terminals 1 | . 1 . Fabricators . | . . . Repair Stations . | . . . Recycling Units . | . . . Scanalyzers . | . . . Garrison Access . | . . . Total Hacks 4 | . 4 . Successful 2 | . 2 . Failed 2 | . 2 . Catastrophic . | . . . Database Lockouts . | . . . Manual 4 | . 4 . Terminals 4 | . 4 . Fabricators . | . . . Repair Stations . | . . . Recycling Units . | . . . Scanalyzers . | . . . Garrison Access . | . . . Terminal Hacks . | . . . Fabricator Hacks . | . . . Repair Station Hacks . | . . . Recycling Unit Hacks . | . . . Scanalyzer . | . . . Garrison Access Hacks . | . . . Unauthorized Hacks 2 | . 2 . Terminals 2 | . 2 . Botnet 1 | . 1 . Skim 1 | . 1 . Fabricators . | . . . Repair Stations . | . . . Recycling Units . | . . . Scanalyzers . | . . . Garrison Access . | . . . Data Cores Recovered . | . . . Used . | . . . Hacking Detections 1 | . 1 . Full Trace Events . | . . . Feedback Events . | . . . Feedback Blocked . | . . . Robot Schematics Acquired . | . . . Robots Built . | . . . Authchips . | . . . Time . | . . . Total Robot Build Rating . | . . . Part Schematics Acquired . | . . . Parts Built . | . . . Authchips . | . . . Time . | . . . Total Part Build Rating . | . . . Parts Repaired . | . . . Time . | . . . Parts Recycled . | . . . Recycled Matter . | . . . Retrieved Matter . | . . . Retrieved Components . | . . . Parts Scanalyzed . | . . . Part Schematics Acquired . | . . . Parts Damaged . | . . . Bothacking | -11 -10 -10 ------------ Run | Yrd Mat Min Used RIF Installer . | . . . Robots Hacked . | . . . Non-combat . | . . . Combat . | . . . Robot Hacks Applied . | . . . Relay Couplers Released . | . . . Fabnet Peak Effective % . | . . . Robots Rewired . | . . . Allies Hacked . | . . . Hacks Repelled . | . . . Allies | -11 -10 -10 -------- Run | Yrd Mat Min Total Allies 1 | . . 1 Largest Group 1 | . . 1 Highest-Rated Group 31 | . . 31 Highest-Rated Ally 31 | . . 31 Total Orders . | . . . Ally Attacks 12 | . . 12 Total Damage 251 | . . 251 Kills 3 | . . 3 Allies Corrupted . | . . . Allies Melted . | . . . Intel | -11 -10 -10 ------- Run | Yrd Mat Min Robot Analysis Total . | . . . Derelict Logs Recovered 1 | . . 1 Drone Launches . | . . . Drone Recoveries . | . . . Exploration | -11 -10 -10 ------------- Run | Yrd Mat Min Turns Passed 543 | 85 286 172 Spaces Moved 366 | 25 216 125 Core 1 | . . 1 Treads . | . . . Legs 340 | 25 216 99 Wheels . | . . . Hover . | . . . Flight 25 | . . 25 Fastest Speed 37 | 120 120 37 Average Speed 114 | 120 120 103 Slowest Speed 120 | 120 120 120 Overloaded Moves . | . . . Propulsion Burnouts . | . . . Robots Hopped 7 | . . 7 Cave-ins Triggered . | . . . Exploration Rate (%) 21 | 4 29 32 Regions Visited 2 Branch Regions 1 Pre-discovered Areas 1 | . . 1 Known Exits Taken . | . . . Unknown Exits Taken 2 | 1 1 . Scrap Searched . | . . . Spaces Dug . | . . . Terrain Destroyed . | . . . Melee . | . . . Projectile . | . . . AOE . | . . . Terrain Rammed . | . . . Walls Destroyed . | . . . Machines Disabled . | . . . Actions | -11 -10 -10 --------- Run | Yrd Mat Min Total 445 | 60 237 148 Wait 21 | 21 . . Move 353 | 24 215 114 Hop 4 | . . 4 Pick Up 10 | 3 6 1 Fast Attach 1 | . . 1 Attach 4 | 1 1 2 Detach 1 | . 1 . Swap 6 | . 3 3 Drop 7 | . 6 1 Fire 21 | 11 5 5 Melee . | . . . Ram . | . . . Kick 17 | . . 17 Crush . | . . . Escape Stasis . | . . . Rewire . | . . . Trap . | . . . Miscellaneous . | . . . Route ------- -11/Scrapyard -10/Materials (discovered 2 exits: [*Mat] / [*Min]) -10/Mines History --------- Turn | Location | Event 18 | -11/Scrapyard | Discovered new exit (range 3) 86 | -11/Scrapyard | Entered Materials 89 | -10/Materials | Discovered new exit (range 8) 229 | -10/Materials | Discovered new exit (range 15) 307 | -10/Materials | Build established: Mutant 372 | -10/Materials | Entered Mines 416 | -10/Mines | Met a Derelict testing a Signal Generator 430 | -10/Mines | Found Signal Generator 503 | -10/Mines | Learned location of Zion (-6) 510 | -10/Mines | Assembled infested the area 515 | -10/Mines | Assisted by a Guerilla fighting off Assembled 518 | -10/Mines | A weapon hastily lodged in a ceiling crevice suddenly fell to the ground 532 | -10/Mines | Released all parts (6) 537 | -10/Mines | Core integrity fell below 50% 544 | -10/Mines | Destroyed by as-06250 with Assembled Rifle Last Messages --------------- (Destroy). 00526_ G-34 Mercenary destroyed. 00526_ HV Slug penetrates M-13 Machinist. 00526_ M-13 Machinist suffers critical hit (Destroy). 00528_ Knocked back. 00530_ HV Slug penetrates G-34 Mercenary. 00530_ G-34 Mercenary suffers critical hit (Destroy). 00530_ G-34 Mercenary knocked back. 00531_ as-55640 suffers critical hit (Burn). 00531_ as-55640 destroyed. 00532_ Released Med. Laser. 00532_ Released Aluminum Leg. 00532_ Released Lgt. Assault Rifle. 00532_ Released Med. Storage Unit. 00532_ Released Heat Sink. 00532_ Acquired Flight Unit. 00537_ Flight Unit destroyed. 00539_ HV Slug penetrates Wall. Map ----- +----------------------------------------------------+ | | | | | | | ?????????????????????????????????????? | | ?????????????????????????????????????? | | ?????????????????????????????????????? | | ?????????????????????????????????????? | | ?????????????????????????????????????? | | ?????????????????????????????????????? | | ?????????????????????????????????????? | | ?????????????????????????????????????? | | ?????????????????????????????????????? | | ?????????????????????????????????????? | | ?????????????????????????????????????? | | ????????????????????????????????###??? | | ??????????????????????????????## ##?? | | ?????????????????????????????## #?? | | ?????????????????????????????# #?? | | ?????????????????????????????# #?? | | ?????????????????????????????# #?? | | ?????????????????????????????# #?? | | ?????????????????????????????# #??? | | ???????????????????????#?????# #??? | | ???????????????????????# ????## #??? | | ???????????????????????# ######a #??? | | ???????????????????????# @aaaa< #??? | | ?????????????????????# a aaa$ ##??? | | ???????????????? #### #???? | | ???????????????? a #??##%##???? | | ?????????????? #???# #????? | | ???????????? ##???# #????? | | ???????????? #?????# #????? | | ???????????? #??????# #????? | | ????????????? ##???????# #????? | | ????????????? #?????????# "????? | | ??????????????### #??????????# #????? | | ????????????????###?????????##" ##???? | | ???????????????????????????## = |##??? | | ???????????????????????????# [* #??? | | ?????????????????????????### %[=! #??? | | ?????????????????????????# !=!&##??? | | ?????????????????????????# % ####???? | | ????????????????????????#"*####??????? | | ????????????????????????##%=#????????? | | ?????????????????????????#%##????????? | | ?????????????????????????#%#?????????? | | ?????????????????????????#%#?????????? | | ?????????????????????????# #?????????? | | ?????????????????????????# #?????????? | | ?????????????????????????# #?????????? | +----------------------------------------------------+ Best States ------------- Heat Dissipation 35 Energy Generation 10 Energy Capacity 250 Matter Stores 300 Matter Capacity 300 Sight Range 16 Terrain Scan Density 10 Evasion (%) 62 Item Schematics ----------------- None Robot Schematics ------------------ None Fabricated ------------ Nothing Alien Tech Used ----------------- None Achievements -------------- None Challenges ------------ None Game ------ Seed WeldingSwordChainsword Manual? 0 Play Time 00:08:52 Cumulative 93.0 hours Start 2024.12.01 @ 20:21:04 End 2024.12.01 @ 20:39:39 Sessions 2 Manual Loads 0 Difficulty Rogue Special Mode None Game No. 135 Rogue 135 Adventurer 0 Explorer 0 Win Type - Total 0 Types 0/0/0/0/0/0/0/0/0 Lore% 56 Gallery% 46 Achievement% 33 Wizard Run 0 Options --------- Layout 1 ASCII 0 Keyboard 0 Movement Mouse Keybinds 0 Fullscreen 1 Font 24/Smallcaps Map View 50x40 Zoom Use 0% Tactical HUD 1 Map Filters NONE Filters NONE Steam 1 RUN: b0b09100-ca8c-4202-9e95-caaea001679a